fUSD/lending_fUSD_20260516
["ID","MTS","AMOUNT","RATE_DAILY","PERIOD"]
[422366257,1778880638000,-500.0,0.00014999,2]
[422366288,1778880640000,-1000.0,0.00015,2]
[422366289,1778880640000,-396259.10785521,0.00015,2]
[422366286,1778880640000,-385.1,0.00015,2]
[422366287,1778880640000,-1000.0,0.00015,2]
[422366285,1778880640000,-15773.20812864,0.00015,7]
[422366283,1778880640000,-1817842.88021221,0.00015,2]
[422366284,1778880640000,-152.30346819,0.00015,2]
[422366301,1778880644000,-1406.56545577,0.000147,2]
[422366300,1778880644000,-172.18454734,0.00014523,2]
[422366305,1778880644000,-44463.35311885,0.00015,2]
[422366304,1778880644000,-1036.64690115,0.000147,2]
[422366303,1778880644000,-44.637431,0.000147,2]
[422366310,1778880645000,-5108.51530158,0.00015,2]
[422366309,1778880645000,-1433.75561436,0.00015,2]
[422366313,1778880646000,-602.0,0.00015,2]
[422366317,1778881561000,160.27,8.57e-05,2]
[422366316,1778881561000,160.27,7.647e-05,2]
[422366315,1778881561000,160.27,6.724e-05,2]
[422366318,1778881562000,160.27,9.493e-05,2]
[422366320,1778881763000,-160.27,0.00011339,2]
[422366319,1778881763000,-160.27,0.00010416,2]
[422366321,1778881828000,169.64,0.00029651,120]
[422366372,1778881832000,-259.87,0.00013731,2]
[422366368,1778881832000,-166.66,0.00013699,2]
[422366370,1778881832000,-200.0,0.00013699,2]
[422366356,1778881832000,-150.0,0.00013488,2]
[422366366,1778881832000,-1200.0,0.00013698,2]
[422366354,1778881832000,-214.997284,0.00013455,2]
[422366352,1778881832000,-259.87,0.00013404,2]
[422366364,1778881832000,-376.78,0.00013608,2]
[422366374,1778881832000,-201.23,0.0001381,2]
[422366377,1778881832000,-202.51,0.00013904,2]
[422366339,1778881832000,-500.0,0.00013025,2]
[422366362,1778881832000,-2000.0,0.00013491,2]
[422366358,1778881832000,-150.00000001,0.00013488,2]
[422366360,1778881832000,-150.0,0.00013488,2]
[422366348,1778881832000,-500.0,0.00013356,2]
[422366343,1778881832000,-160.27,0.00013185,2]
[422366341,1778881832000,-259.87,0.00013077,2]
[422366333,1778881832000,-174.55419718,0.00011458,2]
[422366335,1778881832000,-160.27,0.00012262,2]
[422366345,1778881832000,-163.73,0.00013253,2]
[422366337,1778881832000,-169.64,0.00013007,2]
[422366350,1778881832000,-500.0,0.00013356,2]
[422366376,1778881832000,-166.66,0.00013836,2]
[422366390,1778881832000,-172.18454734,0.00014207,2]
[422366383,1778881832000,-7141.86859105,0.0001405,2]
[422366379,1778881832000,-166.66,0.00013973,2]
[422366401,1778881832000,-9718.7137,0.0001425,2]
[422366402,1778881832000,-265850.65486583,0.0001425,2]
[422366397,1778881832000,-500.0,0.00014249,2]
[422366400,1778881832000,-500.0,0.00014249,2]
[422366399,1778881832000,-500.0,0.00014249,2]
[422366398,1778881832000,-500.0,0.00014249,2]
[422366391,1778881832000,-1132.45098589,0.00014233,2]
[422366389,1778881832000,-47610.5313,0.0001415,2]
[422366387,1778881832000,-2600.17419342,0.00014144,2]
[422366386,1778881832000,-150.0,0.0001411,2]
[422366396,1778881832000,-500.0,0.00014248,2]
[422366384,1778881832000,-259.87,0.00014058,2]
[422366388,1778881832000,-1000.0,0.00014149,2]
[422366394,1778881832000,-500.0,0.00014248,2]
[422366380,1778881832000,-475.40820243,0.0001405,2]
[422366395,1778881832000,-500.0,0.00014248,2]
[422366393,1778881832000,-166.66,0.00014247,2]
[422366385,1778881832000,-166.66,0.0001411,2]
[422366381,1778881832000,-2124.76599105,0.0001405,2]
[422366382,1778881832000,-275.23400895,0.0001405,2]
[422366378,1778881832000,-2135.25,0.00013943,2]
[422366392,1778881832000,-2600.17419342,0.00014239,2]
[422366439,1778881833000,-1000.0,0.00014846,2]
[422366435,1778881833000,-2600.17419342,0.00014806,2]
[422366433,1778881833000,-1000.0,0.00014801,2]
[422366437,1778881833000,-1132.45098589,0.00014826,2]
[422366436,1778881833000,-1000.0,0.0001482,2]
[422366432,1778881833000,-1000.0,0.00014799,2]
[422366438,1778881833000,-1000.0,0.00014831,2]
[422366430,1778881833000,-580.967,0.00014768,2]
[422366434,1778881833000,-1000.0,0.00014804,2]
[422366440,1778881833000,-1000.0,0.00014849,2]
[422366451,1778881833000,-1000.0,0.00014918,2]
[422366446,1778881833000,-5000.0,0.000149,2]
[422366444,1778881833000,-1000.0,0.00014893,2]
[422366443,1778881833000,-1000.0,0.00014891,2]
[422366445,1778881833000,-1000.0,0.00014899,2]
[422366447,1778881833000,-2600.17419342,0.000149,2]
[422366442,1778881833000,-200.0,0.0001488,2]
[422366449,1778881833000,-172.18454734,0.000149,2]
[422366448,1778881833000,-1132.45098589,0.000149,2]
[422366450,1778881833000,-414.77922358,0.00014908,2]
[422366431,1778881833000,-166.775,0.00014771,2]
[422366441,1778881833000,-1000.0,0.00014879,2]
[422366425,1778881833000,-2600.17419342,0.00014711,2]
[422366415,1778881833000,-170.34085752,0.00014533,2]
[422366427,1778881833000,-1000.0,0.00014726,2]
[422366406,1778881833000,-1132.45098589,0.00014381,2]
[422366404,1778881833000,-1132.45098589,0.00014307,2]
[422366403,1778881833000,-5903.68284236,0.0001425,2]
[422366405,1778881833000,-2600.17419342,0.00014333,2]
[422366410,1778881833000,-500.0,0.00014438,2]
[422366419,1778881833000,-2600.17419342,0.00014617,2]
[422366417,1778881833000,-172.18454734,0.00014554,2]
[422366409,1778881833000,-2600.17419342,0.00014428,2]
[422366416,1778881833000,-170.34085752,0.00014533,2]
[422366413,1778881833000,-2600.17419342,0.00014522,2]
[422366426,1778881833000,-500.0,0.00014726,2]
[422366418,1778881833000,-1132.45098589,0.00014604,2]
[422366408,1778881833000,-259.87,0.00014385,2]
[422366414,1778881833000,-1132.45098589,0.00014529,2]
[422366412,1778881833000,-1132.45098589,0.00014455,2]
[422366429,1778881833000,-200.0,0.00014755,2]
[422366422,1778881833000,-500.0,0.00014691,2]
[422366420,1778881833000,-1132.45098589,0.00014678,2]
[422366407,1778881833000,-166.66,0.00014384,2]
[422366423,1778881833000,-500.0,0.00014691,2]
[422366424,1778881833000,-6550.02319703,0.000147,2]
[422366428,1778881833000,-1132.45098589,0.00014752,2]
[422366453,1778881833000,-1000.0,0.00014974,2]
[422366452,1778881833000,-1000.0,0.00014942,2]
[422366411,1778881833000,-500.0,0.00014438,2]
[422366456,1778881833000,-285.93233553,0.0001499,2]
[422366478,1778881833000,-500.0,0.00014999,2]
[422366475,1778881833000,-500.0,0.00014999,2]
[422366489,1778881833000,-666.0,0.00014999,2]
[422366485,1778881833000,-300.0,0.00014999,2]
[422366496,1778881833000,-1828.0,0.00015,5]
[422366486,1778881833000,-666.0,0.00014999,2]
[422366490,1778881833000,-300.0,0.00014999,2]
[422366487,1778881833000,-300.0,0.00014999,2]
[422366491,1778881833000,-300.0,0.00014999,2]
[422366493,1778881833000,-300.0,0.00014999,2]
[422366492,1778881833000,-300.0,0.00014999,2]
[422366488,1778881833000,-300.0,0.00014999,2]
[422366495,1778881833000,-2284.0,0.00015,5]
[422366494,1778881833000,-666.0,0.00014999,2]
[422366498,1778881833000,-150.0,0.00015,2]
[422366497,1778881833000,-150.0,0.00015,2]
[422366503,1778881833000,-15910.08171524,0.00015,2]
[422366499,1778881833000,-278399.24782241,0.00015,2]
[422366500,1778881833000,-25099.56162305,0.00015,2]
[422366501,1778881833000,-241350.44727683,0.00015,2]
[422366504,1778881833000,-16749.09684954,0.00015,2]
[422366502,1778881833000,-13025.51440856,0.00015,2]
[422366455,1778881833000,-820.98291614,0.00014989,2]
[422366474,1778881833000,-500.0,0.00014999,2]
[422366479,1778881833000,-500.0,0.00014999,2]
[422366421,1778881833000,-500.0,0.00014691,2]
[422366476,1778881833000,-500.0,0.00014999,2]
[422366459,1778881833000,-151.0,0.00014997,2]
[422366477,1778881833000,-500.0,0.00014999,2]
[422366454,1778881833000,-1000.0,0.00014986,2]
[422366461,1778881833000,-500.0,0.00014999,2]
[422366460,1778881833000,-500.0,0.00014999,2]
[422366457,1778881833000,-285.93233553,0.0001499,2]
[422366462,1778881833000,-500.0,0.00014999,2]
[422366458,1778881833000,-285.93233553,0.0001499,2]
[422366470,1778881833000,-500.0,0.00014999,2]
[422366465,1778881833000,-500.0,0.00014999,2]
[422366471,1778881833000,-500.0,0.00014999,2]
[422366463,1778881833000,-500.0,0.00014999,2]
[422366473,1778881833000,-500.0,0.00014999,2]
[422366482,1778881833000,-500.0,0.00014999,2]
[422366484,1778881833000,-14946.2593146,0.00014999,2]
[422366464,1778881833000,-500.0,0.00014999,2]
[422366481,1778881833000,-500.0,0.00014999,2]
[422366480,1778881833000,-500.0,0.00014999,2]
[422366483,1778881833000,-497.28,0.00014999,2]
[422366467,1778881833000,-500.0,0.00014999,2]
[422366468,1778881833000,-413.24,0.00014999,2]
[422366466,1778881833000,-500.0,0.00014999,2]
[422366472,1778881833000,-213.60264062,0.00014999,2]
[422366469,1778881833000,-500.0,0.00014999,2]
[422366510,1778881838000,-4050767.54654708,0.00015,2]
[422366509,1778881838000,-2510.59153601,0.000147,2]
[422366508,1778881838000,-1071.0,0.000147,2]
[422366506,1778881838000,-281.6393173,0.000147,2]
[422366507,1778881838000,-503.45127805,0.000147,2]
[422366823,1778881846000,-8104.3208293,0.00015,2]
[422366821,1778881846000,-3810.66772654,0.000147,2]
[422366822,1778881846000,-462.13463239,0.000147,2]
[422366824,1778881846000,-506.27268784,0.00015,2]
[422366826,1778881846000,-35015.5,0.00015,2]
[422366825,1778881846000,-3493.81317504,0.00015,2]
[422366827,1778881846000,-645.75968916,0.00015,2]
[422366868,1778882396000,158.34,9.267e-05,2]
[422366867,1778882396000,158.34,7.98e-05,2]
[422366866,1778882396000,158.34,6.694e-05,2]
[422366871,1778882713000,481.52157489,0.0001,2]
[422366872,1778882963000,-158.34,0.00010553,2]
[422366889,1778883032000,-300.0,0.00013252,2]
[422366890,1778883032000,-150.0,0.00013253,2]
[422366887,1778883032000,-158.34,0.00013125,2]
[422366894,1778883032000,-166.76,0.00013403,2]
[422366896,1778883032000,-150.0,0.00013488,2]
[422366888,1778883032000,-251.14,0.00013226,2]
[422366898,1778883032000,-150.0,0.00013488,2]
[422366891,1778883032000,-4134.39,0.00013253,2]
[422366897,1778883032000,-150.0,0.00013488,2]
[422366895,1778883032000,-150.0,0.00013488,2]
[422366893,1778883032000,-500.0,0.00013356,2]
[422366884,1778883032000,-500.61456631,0.00013,2]
[422366886,1778883032000,-214.997284,0.00013031,2]
[422366885,1778883032000,-4148.63985514,0.00013,5]
[422366899,1778883032000,-150.0,0.00013488,2]
[422366879,1778883032000,-1291.72009613,0.00012793,2]
[422366882,1778883032000,-201.16,0.00012832,2]
[422366883,1778883032000,-1200.0,0.00012999,2]
[422366880,1778883032000,-708.27990387,0.00012793,2]
[422366878,1778883032000,-91.48999979,0.00012782,2]
[422366876,1778883032000,-158.34,0.00011839,2]
[422366877,1778883032000,-108.66000021,0.00012782,2]
[422366892,1778883032000,-500.0,0.00013356,2]
[422366902,1778883032000,-150.0,0.00013488,2]
[422366903,1778883032000,-150.0,0.00013488,2]
[422366900,1778883032000,-150.0,0.00013488,2]
[422366901,1778883032000,-150.0,0.00013488,2]
[422366925,1778883032000,-9022.08812025,0.00013699,2]
[422366924,1778883032000,-3221.22,0.00013699,2]
[422366926,1778883032000,-838.90034394,0.00013699,2]
[422366921,1778883032000,-796.45,0.00013699,2]
[422366923,1778883032000,-150.99,0.00013699,2]
[422366916,1778883032000,-150.0,0.00013645,2]
[422366918,1778883032000,-150.0,0.00013672,2]
[422366915,1778883032000,-150.0,0.00013638,2]
[422366917,1778883032000,-150.0,0.00013645,2]
[422366919,1778883032000,-150.0,0.00013698,2]
[422366914,1778883032000,-150.0,0.00013624,2]
[422366922,1778883032000,-166.66,0.00013699,2]
[422366913,1778883032000,-150.0,0.00013624,2]
[422366911,1778883032000,-150.0,0.00013603,2]
[422366912,1778883032000,-150.0,0.00013619,2]
[422366910,1778883032000,-150.0,0.00013593,2]
[422366908,1778883032000,-150.0,0.00013567,2]
[422366909,1778883032000,-886.8,0.00013579,2]
[422366907,1778883032000,-251.14,0.00013557,2]
[422366906,1778883032000,-150.0,0.0001354,2]
[422366905,1778883032000,-150.0,0.00013514,2]
[422366904,1778883032000,-150.0,0.00013488,2]
[422366920,1778883032000,-200.0,0.00013699,2]
[422366946,1778883038000,-150.0,0.00013787,2]
[422366950,1778883038000,-150.0,0.00013829,2]
[422366951,1778883038000,-150.0,0.00013834,2]
[422366955,1778883038000,-150.0,0.00013882,2]
[422366949,1778883038000,-150.0,0.00013803,2]
[422366945,1778883038000,-150.0,0.00013787,2]
[422366959,1778883038000,-150.0,0.00013896,2]
[422366953,1778883038000,-2586.8011,0.0001385,2]
[422366958,1778883038000,-150.0,0.00013896,2]
[422366956,1778883038000,-251.14,0.00013888,2]
[422366968,1778883038000,-166.66,0.00013973,2]
[422366948,1778883038000,-500.0,0.00013787,2]
[422366954,1778883038000,-150.0,0.00013856,2]
[422366947,1778883038000,-150.0,0.00013787,2]
[422366932,1778883038000,-158.08,0.00013699,2]
[422366943,1778883038000,-150.0,0.0001376,2]
[422366939,1778883038000,-150.0,0.00013718,2]
[422366942,1778883038000,-150.0,0.0001376,2]
[422366944,1778883038000,-150.0,0.00013777,2]
[422366937,1778883038000,-1487.49,0.00013699,2]
[422366941,1778883038000,-150.0,0.00013751,2]
[422366940,1778883038000,-150.0,0.00013724,2]
[422366935,1778883038000,-1353.29450329,0.00013699,2]
[422366938,1778883038000,-837.52,0.00013699,2]
[422366936,1778883038000,-9999.99,0.00013699,2]
[422366934,1778883038000,-854.3260081,0.00013699,2]
[422366933,1778883038000,-363.69948861,0.00013699,2]
[422366931,1778883038000,-139.00153581,0.00013699,2]
[422366966,1778883038000,-2500.0,0.0001395,2]
[422366952,1778883038000,-166.66,0.00013836,2]
[422366962,1778883038000,-150.0,0.00013937,2]
[422366979,1778883038000,-4394.89,0.00014027,2]
[422366963,1778883038000,-150.0,0.00013949,2]
[422366961,1778883038000,-150.0,0.00013935,2]
[422367008,1778883038000,-500.0,0.00014049,2]
[422367006,1778883038000,-500.0,0.00014049,2]
[422367004,1778883038000,-500.0,0.00014049,2]
[422367014,1778883038000,-500.0,0.00014049,2]
[422367016,1778883038000,-500.0,0.00014049,2]
[422367002,1778883038000,-500.0,0.00014049,2]
[422367012,1778883038000,-502.56578458,0.00014049,2]
[422367000,1778883038000,-500.0,0.00014049,2]
[422366998,1778883038000,-500.0,0.00014049,2]
[422366996,1778883038000,-500.0,0.00014049,2]
[422366992,1778883038000,-500.0,0.00014049,2]
[422366990,1778883038000,-500.0,0.00014049,2]
[422366988,1778883038000,-5329.64700774,0.0001404,2]
[422366994,1778883038000,-500.0,0.00014049,2]
[422367010,1778883038000,-500.0,0.00014049,2]
[422366983,1778883038000,-150.0,0.00014033,2]
[422366985,1778883038000,-150.0,0.0001404,2]
[422366969,1778883038000,-1651.353992,0.00013981,2]
[422366967,1778883038000,-150.0,0.00013961,2]
[422366965,1778883038000,-1607.1946,0.0001395,2]
[422366970,1778883038000,-150.0,0.00013987,2]
[422366971,1778883038000,-1940.8023514,0.0001399,2]
[422366964,1778883038000,-11050.48667765,0.0001395,2]
[422366976,1778883038000,-172.83991482,0.00014,2]
[422366978,1778883038000,-150.0,0.00014014,2]
[422366981,1778883038000,-150.0,0.00014033,2]
[422366960,1778883038000,-150.0,0.00013908,2]
[422366974,1778883038000,-768.959,0.00014,2]
[422366972,1778883038000,-250.0,0.00014,2]
[422367091,1778883039000,-150.0,0.00014066,2]
[422367108,1778883039000,-150.0,0.00014119,2]
[422367105,1778883039000,-166.66,0.0001411,2]
[422367103,1778883039000,-150.0,0.00014092,2]
[422367089,1778883039000,-150.0,0.00014064,2]
[422367085,1778883039000,-11050.48667761,0.00014056,2]
[422367101,1778883039000,-150.0,0.00014087,2]
[422367099,1778883039000,-150.0,0.00014087,2]
[422367095,1778883039000,-1433.875779,0.00014068,2]
[422367097,1778883039000,-150.0,0.00014087,2]
[422367112,1778883039000,-150.0,0.00014145,2]
[422367093,1778883039000,-160.0,0.00014068,2]
[422367087,1778883039000,-500.0,0.00014061,2]
[422367114,1778883039000,-11050.48667761,0.00014161,2]
[422367126,1778883039000,-251.14,0.00014218,2]
[422367122,1778883039000,-150.0,0.00014179,2]
[422367128,1778883039000,-150.0,0.00014224,2]
[422367118,1778883039000,-150.0,0.00014169,2]
[422367124,1778883039000,-150.0,0.00014198,2]
[422367110,1778883039000,-300.0,0.00014137,2]
[422367116,1778883039000,-150.0,0.00014169,2]
[422367120,1778883039000,-150.0,0.00014171,2]
[422367130,1778883039000,-150.0,0.00014237,2]
[422367135,1778883039000,-150.0,0.00014237,2]
[422367137,1778883039000,-166.66,0.00014247,2]
[422367156,1778883039000,-500.0,0.00014249,2]
[422367139,1778883039000,-1193.2,0.00014248,2]
[422367083,1778883039000,-500.0,0.00014055,2]
[422367148,1778883039000,-500.0,0.00014248,2]
[422367132,1778883039000,-150.0,0.00014237,2]
[422367079,1778883039000,-835.1817,0.0001405,2]
[422367051,1778883039000,-500.0,0.00014049,2]
[422367077,1778883039000,-151523.357,0.0001405,2]
[422367141,1778883039000,-500.0,0.00014248,2]
[422367018,1778883039000,-500.0,0.00014049,2]
[422367020,1778883039000,-500.0,0.00014049,2]
[422367024,1778883039000,-500.0,0.00014049,2]
[422367022,1778883039000,-500.0,0.00014049,2]
[422367026,1778883039000,-500.0,0.00014049,2]
[422367028,1778883039000,-500.0,0.00014049,2]
[422367041,1778883039000,-500.0,0.00014049,2]
[422367034,1778883039000,-500.0,0.00014049,2]
[422367045,1778883039000,-500.0,0.00014049,2]
[422367032,1778883039000,-626.9,0.00014049,2]
[422367039,1778883039000,-500.0,0.00014049,2]
[422367043,1778883039000,-500.0,0.00014049,2]
[422367047,1778883039000,-500.0,0.00014049,2]
[422367030,1778883039000,-626.9,0.00014049,2]
[422367036,1778883039000,-500.0,0.00014049,2]
[422367049,1778883039000,-508.37684919,0.00014049,2]
[422367053,1778883039000,-500.0,0.00014049,2]
[422367057,1778883039000,-500.0,0.00014049,2]
[422367055,1778883039000,-500.0,0.00014049,2]
[422367059,1778883039000,-500.0,0.00014049,2]
[422367065,1778883039000,-894.59,0.00014049,2]
[422367067,1778883039000,-500.0,0.00014049,2]
[422367069,1778883039000,-500.0,0.00014049,2]
[422367063,1778883039000,-894.59,0.00014049,2]
[422367061,1778883039000,-500.0,0.00014049,2]
[422367073,1778883039000,-500.0,0.00014049,2]
[422367071,1778883039000,-259.04345659,0.00014049,2]
[422367075,1778883039000,-500.0,0.00014049,2]
[422367081,1778883039000,-381.73158512,0.00014053,2]
[422367143,1778883039000,-500.0,0.00014248,2]
[422367238,1778883039000,-500.0,0.00014452,2]
[422367150,1778883039000,-1193.2,0.00014249,2]
[422367228,1778883039000,-500.0,0.00014452,2]
[422367218,1778883039000,-500.0,0.00014451,2]
[422367230,1778883039000,-500.0,0.00014452,2]
[422367219,1778883039000,-500.0,0.00014452,2]
[422367226,1778883039000,-500.0,0.00014452,2]
[422367211,1778883039000,-150.0,0.00014441,2]
[422367209,1778883039000,-150.0,0.00014441,2]
[422367214,1778883039000,-653.65084534,0.00014442,2]
[422367215,1778883039000,-2193.71560018,0.00014449,2]
[422367232,1778883039000,-234.94080904,0.00014452,2]
[422367234,1778883039000,-500.0,0.00014452,2]
[422367236,1778883039000,-608.19926008,0.00014452,2]
[422367240,1778883039000,-500.0,0.00014452,2]
[422367242,1778883039000,-500.0,0.00014452,2]
[422367253,1778883039000,-500.0,0.00014452,2]
[422367257,1778883039000,-500.0,0.00014452,2]
[422367252,1778883039000,-500.0,0.00014452,2]
[422367244,1778883039000,-213.01114122,0.00014452,2]
[422367247,1778883039000,-150.0,0.00014452,2]
[422367250,1778883039000,-500.0,0.00014452,2]
[422367255,1778883039000,-500.0,0.00014452,2]
[422367259,1778883039000,-500.0,0.00014452,2]
[422367261,1778883039000,-500.0,0.00014452,2]
[422367273,1778883039000,-150.0,0.00014452,2]
[422367272,1778883039000,-150.0,0.00014452,2]
[422367263,1778883039000,-500.0,0.00014452,2]
[422367154,1778883039000,-500.0,0.00014249,2]
[422367266,1778883039000,-500.0,0.00014452,2]
[422367270,1778883039000,-172.58069407,0.00014452,2]
[422367224,1778883039000,-500.0,0.00014452,2]
[422367221,1778883039000,-500.0,0.00014452,2]
[422367268,1778883039000,-500.0,0.00014452,2]
[422367205,1778883039000,-150.0,0.0001441,2]
[422367208,1778883039000,-150.0,0.00014434,2]
[422367147,1778883039000,-500.0,0.00014248,2]
[422367145,1778883039000,-500.0,0.00014248,2]
[422367158,1778883039000,-500.0,0.00014249,2]
[422367162,1778883039000,-11050.48667761,0.00014267,2]
[422367160,1778883039000,-150.0,0.0001425,2]
[422367164,1778883039000,-2193.71560021,0.00014269,2]
[422367170,1778883039000,-150.0,0.00014303,2]
[422367171,1778883039000,-150.0,0.00014305,2]
[422367177,1778883039000,-350.0,0.00014335,2]
[422367180,1778883039000,-2193.71560018,0.00014359,2]
[422367166,1778883039000,-150.0,0.00014276,2]
[422367168,1778883039000,-150.0,0.00014295,2]
[422367175,1778883039000,-500.0,0.00014335,2]
[422367172,1778883039000,-150.0,0.00014305,2]
[422367152,1778883039000,-500.0,0.00014249,2]
[422367169,1778883039000,-1048.0,0.00014299,2]
[422367178,1778883039000,-150.0,0.00014355,2]
[422367192,1778883039000,-150.0,0.00014387,2]
[422367190,1778883039000,-150.0,0.00014387,2]
[422367194,1778883039000,-1550.0,0.0001439,5]
[422367188,1778883039000,-150.0,0.00014387,2]
[422367201,1778883039000,-5000.0,0.00014404,2]
[422367204,1778883039000,-150.0,0.00014408,2]
[422367196,1778883039000,-10449.59981307,0.0001439,2]
[422367186,1778883039000,-166.66,0.00014384,2]
[422367182,1778883039000,-11050.48667761,0.00014372,2]
[422367184,1778883039000,-150.0,0.00014382,2]
[422367173,1778883039000,-150.0,0.00014329,2]
[422367199,1778883039000,-2000.0,0.00014393,2]
[422367343,1778883040000,-156.6761228,0.00014578,2]
[422367356,1778883040000,-2193.71560018,0.0001463,2]
[422367365,1778883040000,-150.0,0.00014687,2]
[422367339,1778883040000,-930.0,0.00014555,2]
[422367341,1778883040000,-150.0,0.00014566,2]
[422367347,1778883040000,-150.0,0.00014578,2]
[422367363,1778883040000,-150.0,0.00014671,2]
[422367358,1778883040000,-150.0,0.0001464,2]
[422367354,1778883040000,-150.0,0.00014618,2]
[422367345,1778883040000,-150.0,0.00014578,2]
[422367352,1778883040000,-150.0,0.00014592,2]
[422367349,1778883040000,-11050.48667761,0.00014583,2]
[422367367,1778883040000,-150.0,0.00014687,2]
[422367375,1778883040000,-13146.21495819,0.000147,2]
[422367371,1778883040000,-11050.48667761,0.00014689,2]
[422367390,1778883040000,-150.0,0.0001475,2]
[422367369,1778883040000,-150.0,0.00014687,2]
[422367377,1778883040000,-150.0,0.00014714,2]
[422367379,1778883040000,-150.0,0.00014714,2]
[422367382,1778883040000,-2193.71560018,0.0001472,2]
[422367384,1778883040000,-150.0,0.00014723,2]
[422367386,1778883040000,-500.0,0.00014726,2]
[422367373,1778883040000,-150.0,0.00014697,2]
[422367388,1778883040000,-438.0,0.00014742,2]
[422367336,1778883040000,-6053.0,0.00014555,2]
[422367393,1778883040000,-150.60061714,0.00014754,2]
[422367361,1778883040000,-150.0,0.00014645,2]
[422367335,1778883040000,-251.14,0.00014549,2]
[422367299,1778883040000,-500.0,0.00014504,2]
[422367321,1778883040000,-299.99,0.00014504,2]
[422367397,1778883040000,-824.61712934,0.00014754,2]
[422367276,1778883040000,-291.85352659,0.00014452,2]
[422367280,1778883040000,-150.0,0.00014452,2]
[422367278,1778883040000,-150.0,0.00014452,2]
[422367281,1778883040000,-150.0,0.00014452,2]
[422367283,1778883040000,-150.0,0.00014452,2]
[422367288,1778883040000,-240.00749327,0.00014452,2]
[422367286,1778883040000,-150.0,0.00014452,2]
[422367290,1778883040000,-150.0,0.0001446,2]
[422367293,1778883040000,-11050.48667761,0.00014478,2]
[422367297,1778883040000,-1223.0,0.000145,2]
[422367295,1778883040000,-150.0,0.00014487,2]
[422367303,1778883040000,-500.0,0.00014504,2]
[422367301,1778883040000,-500.0,0.00014504,2]
[422367307,1778883040000,-500.0,0.00014504,2]
[422367305,1778883040000,-626.9,0.00014504,2]
[422367309,1778883040000,-500.0,0.00014504,2]
[422367311,1778883040000,-500.0,0.00014504,2]
[422367313,1778883040000,-894.59,0.00014504,2]
[422367317,1778883040000,-4999.99,0.00014504,2]
[422367315,1778883040000,-500.0,0.00014504,2]
[422367329,1778883040000,-150.0,0.00014537,2]
[422367333,1778883040000,-2193.71560018,0.00014539,2]
[422367331,1778883040000,-150.0,0.00014539,2]
[422367327,1778883040000,-420.0,0.00014529,2]
[422367325,1778883040000,-150.0,0.00014525,2]
[422367323,1778883040000,-150.0,0.00014513,2]
[422367319,1778883040000,-5679.12,0.00014504,2]
[422367418,1778883040000,-5000.01,0.00014838,2]
[422367516,1778883040000,-500.0,0.0001497,2]
[422367431,1778883040000,-373.0,0.00014851,2]
[422367483,1778883040000,-198.85468374,0.00014903,2]
[422367486,1778883040000,-150.0,0.00014907,2]
[422367474,1778883040000,-1347.81791516,0.000149,2]
[422367488,1778883040000,-290.79838077,0.00014908,2]
[422367481,1778883040000,-15000.0,0.00014902,2]
[422367490,1778883040000,-150.0,0.00014934,2]
[422367468,1778883040000,-25000.0,0.000149,3]